bitfinex/quotes_BTCUSD_20220201
["timestamp","ask_amount","ask_price","bid_price","bid_amount"]
[1643726838320,0.09769674,38547.0,38533.0,0.14081426]
[1643726838321,0.06487297,38542.0,38533.0,0.19081426]
[1643726838527,0.12973788,38546.0,38533.0,0.19081426]
[1643726838528,0.064865,38546.0,38534.0,0.39388843]
[1643726838728,0.17532379,38553.0,38535.0,1.4990749]
[1643726838927,0.0057305,38559.0,38539.0,0.064856]
[1643726839226,0.29726368,38549.0,38535.0,0.41516191]
[1643726839423,0.00548414,38556.0,38536.0,0.39025338]
[1643726839626,0.00548414,38556.0,38545.0,0.1335613]
[1643726839627,0.064858,38551.0,38545.0,0.1335613]
[1643726839827,0.064858,38551.0,38546.0,0.07921956]
[1643726839828,0.06645569,38551.0,38546.0,0.07921956]
[1643726840025,0.00159769,38551.0,38547.0,0.38608272]
[1643726840224,0.00159769,38551.0,38548.0,0.04427345]
[1643726840423,0.00159769,38551.0,38549.0,0.350288]
[1643726840680,0.18477086,38565.0,38549.0,0.03937438]
[1643726840681,0.1752786,38565.0,38549.0,0.03937438]
[1643726840881,0.1752786,38565.0,38542.0,0.1]
[1643726840882,0.1,38550.0,38533.0,0.43731614]
[1643726841076,0.1,38550.0,38534.0,0.064865]
[1643726841077,0.05,38547.0,38534.0,0.064865]
[1643726841274,0.05,38547.0,38533.0,9.299e-05]
[1643726841275,0.10220823,38545.0,38533.0,9.299e-05]
[1643726841477,0.3189272,38544.0,38533.0,9.299e-05]
[1643726841673,0.32440282,38544.0,38526.0,0.05]
[1643726841873,0.34378966,38537.0,38534.0,0.08073189]
[1643726842073,0.133293,38536.0,38526.0,0.05]
[1643726842277,0.1149,38535.0,38526.0,0.05]
[1643726842477,0.2387831,38534.0,38526.0,0.05]
[1643726842676,0.12014413,38535.0,38526.0,0.05]
[1643726842677,0.2136442,38531.0,38526.0,0.05]
[1643726842877,0.22914865,38530.0,38526.0,0.025]
[1643726843073,0.17980303,38529.0,38527.0,0.09828622]
[1643726843274,0.133293,38528.0,38527.0,0.09828622]
[1643726843776,0.129805,38530.0,38527.0,0.09828622]
[1643726844419,0.129805,38530.0,38528.0,0.350288]
[1643726844719,0.129805,38530.0,38528.0,0.80664486]
[1643726844921,0.25955769,38535.0,38528.0,0.80664486]
[1643726845126,0.25955769,38535.0,38527.0,0.09986272]
[1643726845323,0.10096485,38534.0,38527.0,0.09986272]
[1643726845521,0.25955769,38535.0,38527.0,0.09828622]
[1643726845720,0.25955769,38535.0,38529.0,0.0015764]
[1643726846120,0.25955769,38535.0,38529.0,0.16713889]
[1643726846321,0.06488873,38533.0,38529.0,0.16713889]
[1643726846624,0.133293,38532.0,38526.0,0.025]
[1643726846822,0.09210665,38531.0,38529.0,0.0007882]
[1643726847023,0.06488873,38533.0,38529.0,0.0007882]
[1643726847024,0.05,38532.0,38529.0,0.0007882]
[1643726847221,0.06488873,38533.0,38529.0,0.0007882]
[1643726847421,0.06488873,38533.0,38529.0,0.1546641]
[1643726847625,0.06488873,38533.0,38530.0,0.07395878]
[1643726847821,0.09107382,38531.0,38530.0,0.07395878]
[1643726848022,0.00788222,38532.0,38530.0,0.07395878]
[1643726848277,0.06488873,38533.0,38530.0,0.07474697]
[1643726849075,0.06488873,38533.0,38531.0,0.14153346]
[1643726849578,0.14809701,38533.0,38531.0,0.14153346]
[1643726849778,0.00267841,38535.0,38532.0,0.19836302]
[1643726849976,0.1974,38547.0,38543.0,0.0957538]
[1643726849977,0.10815777,38545.0,38543.0,0.0957538]
[1643726850190,0.133293,38544.0,38543.0,0.0957538]
[1643726850880,0.05,38541.0,38526.0,0.025]
[1643726851082,0.176893,38540.0,38526.0,0.025]
[1643726851279,0.41317934,38540.0,38526.0,0.025]
[1643726851478,0.064899,38537.0,38526.0,0.025]
[1643726851682,0.06490146,38534.0,38526.0,0.025]
[1643726851935,0.07185341,38534.0,38527.0,0.10041806]
[1643726852135,0.133293,38533.0,38527.0,0.10041806]
[1643726852336,0.25506751,38533.0,38527.0,0.10041806]
[1643726852739,0.23026904,38532.0,38527.0,0.10041806]
[1643726853034,0.19820074,38531.0,38527.0,0.10041806]
[1643726853236,0.25428636,38531.0,38527.0,0.10041806]
[1643726853436,0.20428636,38531.0,38527.0,0.10041806]
[1643726853636,0.06490774,38531.0,38527.0,0.10041806]
[1643726853836,0.133293,38530.0,38527.0,0.10041806]
[1643726854035,0.07267205,38531.0,38527.0,0.10041806]
[1643726854737,0.198199,38530.0,38527.0,0.23132657]
[1643726854935,0.064908,38530.0,38527.0,0.10041806]
[1643726855135,0.114908,38530.0,38527.0,0.10041806]
[1643726855339,0.133293,38529.0,38527.0,0.10195515]
[1643726856376,0.133293,38529.0,38527.0,0.10041806]
[1643726856576,0.12155419,38530.0,38527.0,0.10041806]
[1643726857577,0.133293,38529.0,38527.0,0.10041806]
[1643726857778,0.12155419,38530.0,38527.0,0.10195515]
[1643726858178,0.133293,38529.0,38527.0,0.10195515]
[1643726858777,0.133293,38529.0,38527.0,0.10041806]
[1643726860128,0.133293,38529.0,38527.0,0.00041806]
[1643726860728,0.23110702,38529.0,38526.0,0.02576855]
[1643726860928,0.10120759,38527.0,38526.0,0.02576855]
[1643726861128,0.133293,38527.0,38526.0,0.025]
[1643726861329,0.133293,38527.0,38526.0,0.02653713]
[1643726861330,0.183293,38527.0,38526.0,0.02653713]
[1643726861729,0.28454485,38527.0,38526.0,0.02653713]
[1643726861928,0.183293,38527.0,38526.0,0.02653713]
[1643726862334,0.183293,38527.0,38526.0,0.025]
[1643726862335,0.19013751,38527.0,38526.0,0.025]
[1643726863184,0.183293,38527.0,38526.0,0.025]
[1643726863376,0.1892284,38527.0,38526.0,0.025]
[1643726863577,0.29299263,38527.0,38526.0,0.025]
[1643726863777,0.183293,38527.0,38526.0,0.025]
[1643726864075,0.05,38527.0,38526.0,0.025]
[1643726864877,0.05,38527.0,38526.0,0.11684937]
[1643726865077,0.18887506,38527.0,38526.0,0.025]
[1643726865474,0.183293,38527.0,38526.0,0.025]
[1643726865681,0.19071523,38527.0,38526.0,0.025]
[1643726865877,0.37913036,38527.0,38526.0,0.025]
[1643726866077,0.183293,38527.0,38526.0,0.025]
[1643726866278,0.18832076,38527.0,38526.0,0.025]
[1643726866482,0.53856309,38527.0,38526.0,0.025]
[1643726866678,0.53856309,38527.0,38525.0,0.00153717]
[1643726866679,1.2,38526.0,38525.0,0.00153717]
[1643726866931,0.263145,38526.0,38525.0,0.00153717]
[1643726867131,0.263145,38526.0,38521.0,0.0031]
[1643726867331,0.263145,38526.0,38524.0,0.00153721]
[1643726867332,0.32805985,38525.0,38524.0,0.00153721]
[1643726867531,0.33518862,38525.0,38524.0,0.00153721]
[1643726867736,0.06492612,38521.0,38513.0,0.0119]
[1643726867939,1.2,38512.0,38506.0,0.0031]
[1643726868137,0.41492909,38513.0,38496.0,0.46331614]
[1643726868138,1.2,38509.0,38496.0,0.46331614]
[1643726868344,1.2,38509.0,38494.0,0.0033]
[1643726868345,1.2,38507.0,38494.0,0.0033]
[1643726868548,0.05,38501.0,38479.0,0.69618046]
[1643726868742,0.05,38501.0,38471.0,0.0105]
[1643726868743,1.2,38482.0,38471.0,0.0105]
[1643726868941,1.2,38482.0,38472.0,0.09407157]
[1643726868943,1.34881322,38481.0,38472.0,0.09407157]
[1643726869138,1.35853037,38481.0,38472.0,0.09407157]
[1643726869338,1.14180523,38481.0,38472.0,0.09407157]
[1643726869544,0.064998,38480.0,38472.0,0.09407157]
[1643726869736,0.205326,38479.0,38472.0,0.09407157]
[1643726870036,0.205326,38479.0,38478.0,0.0056005]
[1643726870037,0.16267706,38479.0,38478.0,0.0056005]
[1643726870237,0.16067706,38479.0,38478.0,0.08402516]
[1643726870435,0.16067706,38479.0,38478.0,0.0056005]
[1643726870691,0.16067706,38479.0,38471.0,0.0105]
[1643726870692,1.2,38478.0,38471.0,0.0105]
[1643726870888,1.55035561,38477.0,38469.0,0.0011843]
[1643726871183,0.065006,38475.0,38471.0,0.00600334]
[1643726871381,0.107526,38474.0,38469.0,0.0011843]
[1643726871682,0.0478,38474.0,38469.0,0.24699423]
[1643726871883,0.06499235,38471.0,38469.0,0.24699423]
[1643726872085,0.129986,38480.0,38471.0,0.03868166]
[1643726872284,0.129986,38480.0,38469.0,0.0011843]
[1643726872586,0.25996452,38480.0,38469.0,0.0011843]
[1643726872784,0.09642433,38477.0,38469.0,0.0011843]
[1643726872983,0.25688587,38479.0,38469.0,0.0011843]
[1643726872984,0.29315114,38476.0,38469.0,0.0011843]
[1643726873186,0.09311909,38475.0,38469.0,0.0023686]
[1643726873384,0.09917563,38473.0,38469.0,0.0023686]
[1643726873588,0.107526,38472.0,38469.0,0.09727747]
[1643726873788,0.10515482,38470.0,38469.0,0.0023686]
[1643726873984,0.10515482,38470.0,38465.0,0.05]
[1643726873985,0.157526,38470.0,38465.0,0.05]
[1643726874191,0.46339963,38469.0,38465.0,0.05]
[1643726874420,0.05756646,38468.0,38465.0,0.05]
[1643726874721,0.14607698,38466.0,38465.0,0.05]
[1643726874919,0.48914396,38466.0,38465.0,0.05]
[1643726875120,0.48914396,38466.0,38465.0,0.045]
[1643726875121,0.11434333,38466.0,38465.0,0.045]
[1643726875523,1.2,38465.0,38464.0,0.00118042]
[1643726875722,1.2,38465.0,38444.0,0.0031]
[1643726875723,8.5e-05,38459.0,38444.0,0.04257167]
[1643726875921,8.5e-05,38459.0,38458.0,0.00588526]
[1643726876126,0.457611,38459.0,38458.0,0.00588526]
[1643726876322,0.457611,38459.0,38453.0,4.69e-06]
[1643726876323,0.83052407,38459.0,38453.0,4.69e-06]
[1643726876527,0.83052407,38459.0,38440.0,0.02207969]
[1643726876528,0.10526,38458.0,38440.0,0.02207969]
[1643726876725,0.10526,38458.0,38435.0,0.03850772]
[1643726876726,0.01802,38454.0,38434.0,0.05918332]
[1643726876925,0.01802,38454.0,38434.0,0.01700362]
[1643726876926,0.065055,38450.0,38434.0,0.01700362]
[1643726877224,0.39621114,38449.0,38438.0,0.0022]
[1643726877422,0.39621114,38449.0,38431.0,0.04793627]
[1643726877423,1.2,38443.0,38431.0,0.04793627]
[1643726877623,1.2,38443.0,38431.0,0.0083]
[1643726877624,0.33988519,38435.0,38431.0,0.0083]
[1643726877838,0.33988519,38435.0,38416.0,0.05]
[1643726877839,0.33988519,38435.0,38396.0,0.201]
[1643726877840,0.0007,38400.0,38396.0,0.201]
[1643726878028,0.19088514,38415.0,38397.0,0.611274]
[1643726878285,0.0528,38414.0,38397.0,0.36043]
[1643726878486,0.19088514,38413.0,38397.0,0.36043]
[1643726878787,0.05306,38412.0,38406.0,0.34993]
[1643726878981,0.112786,38411.0,38407.0,0.41035]
[1643726879282,0.05306,38410.0,38409.0,0.09997]
[1643726879480,2.77614074,38415.0,38410.0,1.15]
[1643726879481,0.17565835,38414.0,38410.0,1.15]
[1643726879682,0.0467,38415.0,38411.0,1.53646914]
[1643726879878,0.5974,38428.0,38412.0,0.09594813]
[1643726879879,0.0478,38427.0,38412.0,0.09594813]
[1643726880079,0.23450212,38428.0,38412.0,0.09594813]
[1643726880080,0.307282,38418.0,38412.0,0.09594813]
[1643726880281,0.23450212,38428.0,38413.0,1.550844]
[1643726880282,0.19532471,38425.0,38413.0,1.550844]
[1643726880483,0.23450212,38428.0,38414.0,0.09995]
[1643726880680,0.20407664,38429.0,38414.0,0.09995]
[1643726880681,0.18562514,38427.0,38416.0,0.09995]
[1643726880882,0.13014244,38438.0,38416.0,0.09995]
[1643726880883,0.28081366,38438.0,38435.0,0.07709283]
[1643726881081,0.29315114,38437.0,38418.0,0.14994]
[1643726881284,0.1,38419.0,38418.0,0.14995]
[1643726881480,0.18562514,38442.0,38418.0,0.500794]
[1643726881680,0.18562514,38442.0,38420.0,0.05]
[1643726881935,0.00696087,38443.0,38428.0,0.09728016]
[1643726881936,0.31488949,38433.0,38428.0,0.09728016]
[1643726882134,0.0205699,38424.0,38418.0,0.14995]
[1643726882329,0.0205699,38424.0,38419.0,0.26028]
[1643726882730,0.18562514,38436.0,38420.0,1.2]
[1643726882935,0.3676185,38440.0,38420.0,1.23727513]
[1643726882936,0.00741616,38440.0,38420.0,1.23727513]
[1643726883133,0.00741616,38440.0,38423.0,0.0205699]
[1643726883732,0.2406135,38440.0,38431.0,0.1659073]
[1643726883936,0.00741616,38440.0,38431.0,0.1659073]
[1643726884132,0.18562514,38443.0,38431.0,0.1659073]
[1643726884434,0.06506116,38448.0,38431.0,0.24980985]
[1643726884435,0.19149657,38448.0,38431.0,0.24980985]
[1643726884635,0.075056,38449.0,38436.0,0.05]
[1643726884636,0.01,38449.0,38436.0,0.05]
[1643726884834,0.01,38449.0,38437.0,0.65600898]
[1643726885035,0.01,38449.0,38448.0,0.37898593]
[1643726885235,0.01,38449.0,38448.0,0.88791335]
[1643726885434,0.01,38449.0,38448.0,0.50892742]
[1643726885879,0.01,38449.0,38443.0,0.0928]
[1643726886081,0.10255285,38448.0,38443.0,0.0928]
[1643726886284,0.005,38447.0,38443.0,0.0428]
[1643726886485,0.006717,38448.0,38443.0,0.0428]
[1643726886486,0.10127967,38446.0,38444.0,0.00111788]
[1643726886881,0.005,38446.0,38445.0,0.0438]
[1643726887185,0.01,38449.0,38445.0,0.0438]
[1643726887382,0.05316308,38448.0,38445.0,0.0438]
[1643726887581,0.005,38447.0,38435.0,0.0438]
[1643726887783,0.01,38449.0,38445.0,0.00111783]
[1643726887985,0.11140593,38449.0,38445.0,0.00111783]
[1643726888185,0.09738817,38448.0,38445.0,0.00111783]
[1643726888385,0.01,38449.0,38445.0,0.00111783]
[1643726888386,0.10175131,38446.0,38445.0,0.00111783]
[1643726888583,0.005,38448.0,38445.0,0.00111783]
[1643726888788,0.005,38448.0,38436.0,0.29011464]
[1643726888995,0.01,38449.0,38444.0,0.10111788]
[1643726889184,0.01,38449.0,38445.0,0.39466396]
[1643726889426,0.02116443,38458.0,38446.0,1.2]
[1643726889628,0.00616443,38458.0,38455.0,0.32478313]
[1643726889826,0.010085,38459.0,38456.0,0.39439476]
[1643726890031,0.01563464,38479.0,38458.0,0.04557284]
[1643726890032,0.005,38467.0,38458.0,0.04557284]
[1643726890329,0.00144113,38460.0,38459.0,0.444644]
[1643726890528,4.113e-05,38460.0,38459.0,0.418744]
[1643726890727,4.113e-05,38460.0,38459.0,0.394644]
[1643726891128,0.09865,38466.0,38459.0,0.0438]
[1643726891327,0.112526,38465.0,38444.0,8.766e-05]
[1643726891537,0.112526,38465.0,38455.0,0.36582343]
[1643726891538,0.22237385,38464.0,38455.0,0.36582343]
[1643726891726,0.09280691,38465.0,38455.0,0.36582343]
[1643726891727,0.005,38463.0,38456.0,0.350844]
[1643726891925,0.09865,38465.0,38463.0,0.14744466]
[1643726891926,0.005,38464.0,38463.0,0.14744466]
[1643726892126,0.09865,38465.0,38452.0,0.0438]
[1643726892326,0.19494814,38469.0,38456.0,0.05]
[1643726892327,0.38724814,38464.0,38456.0,0.05]
[1643726892527,0.38724814,38464.0,38446.0,0.0438]
[1643726892528,0.18994814,38463.0,38446.0,0.0438]
[1643726892727,0.18963739,38460.0,38450.0,0.08062759]
[1643726892927,0.09865,38458.0,38450.0,0.08062759]
[1643726893184,0.005,38457.0,38453.0,0.15067594]
[1643726893380,0.10365,38457.0,38454.0,0.350844]
[1643726893580,0.10365,38456.0,38454.0,0.350844]
[1643726893781,0.1973,38456.0,38454.0,0.350844]
[1643726893980,0.2023,38456.0,38454.0,0.350844]
[1643726894186,0.1973,38456.0,38454.0,0.400844]
[1643726894382,0.1973,38456.0,38455.0,0.20504597]
[1643726894582,0.005,38459.0,38455.0,0.55588997]
[1643726894790,0.005,38467.0,38456.0,0.544644]
[1643726894984,0.00156827,38462.0,38456.0,0.544644]
[1643726895183,0.19886827,38462.0,38456.0,0.444644]
[1643726895384,0.10331394,38461.0,38456.0,0.350844]
[1643726895583,0.36056,38460.0,38455.0,0.350844]
[1643726895883,0.10365,38459.0,38455.0,0.350844]
[1643726896083,0.36056,38458.0,38451.0,0.53525756]
[1643726896383,0.25163,38457.0,38456.0,0.00144853]
[1643726896583,0.60219,38457.0,38456.0,0.35229253]
[1643726897225,0.11312186,38469.0,38458.0,1.2]
[1643726897427,0.11312186,38469.0,38459.0,0.37834756]
[1643726897428,0.00140557,38462.0,38459.0,0.37834756]
[1643726897624,0.10823367,38479.0,38464.0,0.05]
[1643726897625,0.01,38479.0,38464.0,0.05]
[1643726897828,0.01,38479.0,38461.0,0.29311184]
[1643726897829,0.25691,38478.0,38467.0,1.3]
[1643726898029,0.25691,38478.0,38468.0,0.57913556]
[1643726898225,0.35556,38478.0,38469.0,0.33431357]
[1643726898426,0.35556,38478.0,38470.0,0.350922]
[1643726898624,0.35556,38478.0,38473.0,0.10461279]
[1643726898825,0.35556,38478.0,38475.0,0.12906934]
[1643726899027,0.60040106,38478.0,38476.0,0.05]
[1643726899329,0.45620326,38477.0,38466.0,0.18441356]
[1643726899528,0.18441356,38476.0,38456.0,8.766e-05]
[1643726899726,0.18441356,38476.0,38455.0,7.20088]
[1643726899727,0.33350093,38473.0,38457.0,0.74454125]
[1643726899925,0.09214187,38472.0,38463.0,0.08510492]
[1643726900124,0.24484106,38478.0,38463.0,0.08510492]
[1643726900125,0.10244382,38476.0,38464.0,0.350922]
[1643726900327,0.09332724,38475.0,38468.0,0.12254951]
[1643726900529,0.17038264,38484.0,38468.0,0.12254951]
[1643726900777,0.17038264,38484.0,38468.0,0.17254951]
[1643726900778,0.15549145,38483.0,38468.0,0.17254951]
[1643726900977,0.0015699,38473.0,38471.0,0.09575096]
[1643726901176,0.09692445,38472.0,38468.0,0.12254951]
[1643726901375,0.10247147,38473.0,38468.0,0.12254951]
[1643726901577,0.10266004,38472.0,38459.0,0.00145544]
[1643726901778,0.10266004,38472.0,38461.0,0.04278436]
[1643726901979,0.10266004,38472.0,38462.0,0.350922]
[1643726902177,0.00157002,38467.0,38466.0,0.09457792]
[1643726902378,0.00157002,38467.0,38466.0,0.44549992]
[1643726903177,0.29405469,38479.0,38466.0,0.612414]
[1643726903376,0.09959302,38479.0,38472.0,0.13189533]
[1643726903876,0.10019481,38479.0,38472.0,0.18189533]
[1643726904077,0.10019481,38479.0,38473.0,0.07772496]
[1643726904278,0.28179561,38483.0,38474.0,0.350922]
[1643726904527,0.00140638,38478.0,38474.0,0.400922]
[1643726904721,0.00140638,38478.0,38475.0,0.350922]
[1643726905221,0.00140638,38478.0,38475.0,0.53624524]
[1643726905423,0.00140638,38478.0,38475.0,0.350922]
[1643726905624,0.01,38489.0,38476.0,0.21367092]
[1643726905823,0.01,38489.0,38477.0,0.350922]
[1643726905824,0.00140638,38478.0,38477.0,0.350922]
[1643726906023,0.00140638,38478.0,38477.0,0.61621801]
[1643726906226,0.30902236,38496.0,38494.0,6.88781967]
[1643726906227,0.09772236,38496.0,38494.0,6.88781967]
[1643726906425,0.10772236,38499.0,38494.0,5.27827085]
[1643726906624,0.33155373,38495.0,38494.0,5.27827085]
[1643726907228,0.95,38494.0,38476.0,8.766e-05]
[1643726907429,0.129976,38489.0,38476.0,8.766e-05]
[1643726907627,0.25636843,38478.0,38463.0,0.18567173]
[1643726907826,0.25636843,38478.0,38474.0,0.13829587]
[1643726908025,0.25636843,38478.0,38474.0,0.21685845]
[1643726908687,0.25636843,38478.0,38470.0,0.20109352]
[1643726908887,0.25636843,38478.0,38467.0,0.00060438]
[1643726908888,0.20109352,38477.0,38467.0,0.00060438]
[1643726909090,0.20109352,38477.0,38458.0,0.01]
[1643726909091,0.450922,38476.0,38458.0,0.01]
[1643726909289,0.25687097,38475.0,38458.0,0.01]
[1643726909491,0.09657088,38470.0,38467.0,0.00120876]
[1643726909691,0.10428069,38468.0,38467.0,0.00120876]
[1643726909887,0.013502,38468.0,38467.0,0.00120876]
[1643726910090,0.09659719,38468.0,38467.0,0.00120876]
[1643726910291,0.065013,38473.0,38467.0,0.35215876]
[1643726910491,0.260011,38488.0,38467.0,0.35215876]
[1643726910492,0.09281553,38487.0,38468.0,0.20109352]
[1643726910689,1.7422507,38490.0,38468.0,0.20109352]
[1643726910690,0.00144465,38480.0,38468.0,0.20109352]
[1643726910887,0.26355616,38477.0,38470.0,0.5009032]
[1643726911087,0.09246823,38479.0,38471.0,0.08898935]
[1643726911387,0.09246823,38479.0,38471.0,0.13898935]
[1643726912028,0.01,38499.0,38472.0,2.564]
[1643726912233,0.10772236,38499.0,38478.0,0.05]
[1643726912429,0.10772236,38499.0,38479.0,0.59584352]
[1643726912430,0.09349699,38497.0,38479.0,0.59584352]
[1643726912628,0.19121935,38497.0,38480.0,0.0438]
[1643726912826,0.19121935,38497.0,38473.0,0.05]
[1643726912827,0.33432194,38485.0,38473.0,0.05]
[1643726913031,0.30578991,38484.0,38472.0,0.05]
[1643726913228,0.20695067,38484.0,38464.0,0.0542685]
[1643726913528,0.28372588,38477.0,38474.0,0.25585389]
[1643726913728,0.10234069,38477.0,38474.0,0.25585389]
[1643726913925,0.10029277,38481.0,38474.0,0.25585389]
[1643726914328,0.10029277,38481.0,38476.0,0.04226294]
[1643726914528,0.0008424,38482.0,38476.0,0.04226294]
[1643726914731,0.0008424,38482.0,38481.0,0.16204119]
[1643726914928,0.0008424,38482.0,38481.0,0.60415332]
[1643726915129,0.35642517,38490.0,38481.0,0.65415332]
[1643726915329,0.39129539,38496.0,38481.0,0.30320332]
[1643726915330,0.10059535,38493.0,38481.0,0.30320332]
[1643726915529,0.00157326,38483.0,38481.0,0.09116213]
[1643726915797,0.00157326,38483.0,38481.0,0.14116213]
[1643726915994,0.09916316,38483.0,38481.0,0.14116213]
[1643726916297,0.00157326,38483.0,38481.0,0.16247195]
[1643726916495,0.129943,38488.0,38481.0,0.16247195]
[1643726916695,0.09792874,38487.0,38484.0,0.1525954]
[1643726916895,0.129943,38488.0,38484.0,0.1525954]
[1643726917096,0.06497,38485.0,38484.0,0.1525954]
[1643726917497,0.09755109,38495.0,38485.0,0.04224118]
[1643726917695,0.09755109,38495.0,38493.0,0.08010615]
[1643726918295,0.09755109,38495.0,38490.0,0.12350127]
[1643726918496,0.09755109,38495.0,38482.0,0.21522249]
[1643726918696,0.09755109,38495.0,38482.0,0.30956406]
[1643726918897,0.09755109,38495.0,38482.0,0.22761457]
[1643726919105,0.09755109,38495.0,38482.0,0.21522249]
[1643726919106,0.00140815,38490.0,38482.0,0.21522249]
[1643726919296,0.01865051,38484.0,38483.0,0.44665959]
[1643726919534,0.01865051,38484.0,38483.0,0.82350582]
[1643726920130,0.01865051,38484.0,38483.0,0.8322637]
[1643726921031,0.13248142,38496.0,38484.0,1.2]
[1643726921240,0.02810236,38496.0,38485.0,0.54822834]
[1643726921433,0.10589696,38499.0,38485.0,0.54822834]
[1643726921631,0.01,38499.0,38485.0,0.54822834]
[1643726921830,0.10138295,38499.0,38485.0,0.54822834]
[1643726922031,0.10138295,38499.0,38498.0,0.13836406]
[1643726922333,0.01,38499.0,38498.0,0.13836406]
[1643726922730,0.01,38499.0,38498.0,0.48931406]
[1643726922930,0.01,38499.0,38498.0,0.35095]
[1643726923196,0.01,38499.0,38498.0,0.07450367]
[1643726923788,0.01,38499.0,38498.0,0.07350367]
[1643726924990,0.01,38499.0,38498.0,0.42445367]
[1643726925193,0.01,38499.0,38498.0,0.47445367]
[1643726925390,0.01,38499.0,38498.0,0.6926392]
[1643726925592,0.42,38507.0,38499.0,1.2]
[1643726925593,0.37078243,38507.0,38499.0,1.2]
[1643726925794,0.37078243,38507.0,38498.0,0.6926392]
[1643726925795,0.37078243,38507.0,38501.0,0.39234513]
[1643726925991,0.37078243,38507.0,38499.0,0.20565351]
[1643726926192,0.37078243,38507.0,38499.0,0.19254392]
[1643726926392,0.23697176,38514.0,38500.0,1.2]
[1643726926592,0.07780354,38519.0,38506.0,0.13504897]
[1643726926797,0.259749,38526.0,38506.0,0.13504897]
[1643726926798,0.20244006,38520.0,38506.0,0.13504897]
[1643726927041,0.064922,38518.0,38506.0,0.18504897]
[1643726927240,0.064922,38518.0,38507.0,0.35095]
[1643726927438,0.00083896,38515.0,38511.0,0.39683166]
[1643726927636,0.00083896,38515.0,38512.0,0.5011944]
[1643726927842,0.01576096,38518.0,38514.0,0.55]
[1643726928040,0.00335533,38521.0,38515.0,0.35095]
[1643726928339,0.00037673,38522.0,38515.0,0.35095]
[1643726928538,0.00037673,38522.0,38512.0,0.1502444]
[1643726928738,0.20281679,38522.0,38512.0,0.1502444]
[1643726928937,0.26474252,38516.0,38512.0,0.1502444]
[1643726929136,0.20281679,38522.0,38512.0,0.1502444]
[1643726929137,0.00037673,38522.0,38513.0,0.35095]
[1643726929537,0.00037673,38522.0,38520.0,0.07788208]
[1643726929737,0.00037673,38522.0,38512.0,0.1502444]
[1643726930338,0.06528973,38522.0,38518.0,0.12667704]
[1643726930777,0.29403302,38521.0,38518.0,0.12667704]
[1643726930975,0.29403302,38521.0,38516.0,0.09928366]
[1643726931976,0.29403302,38521.0,38519.0,0.13744292]
[1643726932276,0.00157735,38520.0,38516.0,0.09928366]
[1643726932476,0.00157735,38520.0,38516.0,0.13470889]
[1643726932676,0.00157735,38520.0,38506.0,0.0444237]
[1643726932976,0.00157735,38520.0,38505.0,0.6757]
[1643726932977,0.00157735,38520.0,38507.0,0.63603618]
[1643726933180,0.29403302,38521.0,38519.0,0.15924022]
[1643726933578,0.42,38521.0,38519.0,0.15924022]
[1643726933981,0.42,38521.0,38507.0,0.05]
[1643726934182,0.42,38521.0,38508.0,0.38565606]
[1643726934428,0.10531956,38519.0,38514.0,0.02164851]
[1643726934633,0.42,38521.0,38515.0,0.35095]
[1643726934634,0.097101,38518.0,38515.0,0.35095]
[1643726934830,0.09865461,38516.0,38509.0,0.04086448]
[1643726935030,0.10013866,38515.0,38513.0,0.30733117]
[1643726935231,0.42,38521.0,38513.0,0.30733117]
[1643726935232,0.09532734,38519.0,38514.0,0.5477432]
[1643726935429,0.42,38521.0,38518.0,0.14665958]
[1643726936630,0.42,38521.0,38514.0,0.22137147]
[1643726936631,0.10399082,38520.0,38514.0,0.0193653]
[1643726937230,0.10399082,38520.0,38509.0,0.18177966]
[1643726937430,0.23383282,38520.0,38507.0,0.25274717]
[1643726937630,0.29999557,38513.0,38507.0,0.5]
[1643726937834,0.29999557,38513.0,38495.0,1.29987274]
[1643726937835,0.112729,38512.0,38495.0,1.29987274]
[1643726938033,0.20192076,38511.0,38491.0,0.04789156]
[1643726938280,0.0478,38510.0,38495.0,0.00118779]
[1643726938485,0.0478,38510.0,38499.0,0.1199506]
[1643726938680,0.0478,38510.0,38503.0,0.17125243]
[1643726938877,0.0478,38510.0,38499.0,0.10085805]
[1643726939478,0.08002477,38506.0,38499.0,0.10085805]
[1643726939877,0.20990577,38506.0,38499.0,0.10085805]
[1643726940080,0.40335986,38506.0,38495.0,0.00118779]
[1643726940282,0.00784522,38507.0,38505.0,0.1]
[1643726940477,0.00784522,38507.0,38490.0,0.05]
[1643726940478,0.2267943,38503.0,38490.0,0.05]
[1643726940678,0.2267943,38503.0,38495.0,0.0012169]
[1643726940878,0.2267943,38503.0,38498.0,0.02058452]
[1643726941083,0.31123365,38503.0,38498.0,0.02058452]
[1643726941680,0.2267943,38503.0,38499.0,0.14455729]
[1643726941927,0.129881,38506.0,38499.0,0.14455729]
[1643726942733,0.06494,38507.0,38504.0,0.05]
[1643726942930,0.19482,38515.0,38514.0,0.05]
[1643726943129,0.19482,38515.0,38514.0,0.17374357]
[1643726943531,0.00144402,38517.0,38516.0,0.05]
[1643726943737,0.00615212,38522.0,38521.0,0.05]
[1643726944031,0.01,38529.0,38522.0,1.09915555]
[1643726944230,0.01,38529.0,38527.0,0.05]
[1643726944430,0.01,38529.0,38528.0,0.56325914]
[1643726944929,0.01,38529.0,38528.0,0.64565654]
[1643726945130,0.01,38529.0,38528.0,1.02686039]
[1643726945530,0.10206149,38537.0,38529.0,1.2]
[1643726945789,0.10206149,38537.0,38530.0,0.40095]
[1643726945985,0.10206149,38537.0,38533.0,0.1]
[1643726946180,0.10206149,38537.0,38529.0,0.20747954]
[1643726946181,0.10206149,38537.0,38529.0,0.1]
[1643726946582,0.10206149,38537.0,38536.0,0.14571205]
[1643726946782,0.09772236,38538.0,38536.0,0.14571205]
[1643726946981,0.16260236,38541.0,38535.0,0.05]
[1643726947181,0.10352627,38535.0,38533.0,0.1]
[1643726947382,0.09772236,38538.0,38534.0,0.35095]
[1643726947581,0.09185908,38537.0,38534.0,0.08695615]
[1643726947782,0.09772236,38538.0,38534.0,0.08695615]
[1643726947985,0.09343078,38537.0,38536.0,0.14441141]
[1643726948280,0.10552389,38537.0,38536.0,0.14441141]
[1643726948888,0.09772236,38538.0,38536.0,0.14441141]
[1643726949082,0.00157936,38538.0,38537.0,0.40095]
[1643726949284,0.09308522,38537.0,38534.0,0.08695615]